{"text_format":"1","workbook":"xlsx","n_sheets":1,"sheets":["Plan1"],"not_rendered":{"charts":0,"images":0,"macros":1,"external_links":0,"defined_names":1,"comments":0,"pivot_tables":0},"unopened":[],"bounds":{"document_bytes":16777216,"sheet_cells":100000,"rows_first":2000,"rows_last":500,"rows_between":2000,"halvings":0,"cell_chars":16384,"cell_head_chars":4096},"cells_cut":0,"cells_raw":0,"read":"whole","date_system":"1900"}

{"sheet":"Plan1","index":0,"n_rows":26,"n_cols":3,"rows_kept":26,"cut":false,"hidden":false,"merged":[]}
["CODIGO","DESCRICAO","ERRO1"]
[{"$f":"\"01\"","v":"01"},"Autopecas"]
[{"$f":"\"02\"","v":"02"},"Bebidas alcoolicas, exceto cerveja e chope"]
[{"$f":"\"03\"","v":"03"},"Cervejas, chopes, refrigerantes, aguas e outras bebidas"]
[{"$f":"\"04\"","v":"04"},"Cigarros e outros produtos derivados do fumo"]
[{"$f":"\"05\"","v":"05"},"Cimentos"]
[{"$f":"\"06\"","v":"06"},"Combustiveis e lubrificantes"]
[{"$f":"\"07\"","v":"07"},"Energia eletrica"]
[{"$f":"\"08\"","v":"08"},"Ferramentas"]
[{"$f":"\"09\"","v":"09"},"Lampadas, reatores e starter"]
[{"$f":"\"10\"","v":"10"},"Materiais de construcao e congeneres"]
[{"$f":"\"11\"","v":"11"},"Materiais de limpeza"]
[{"$f":"\"12\"","v":"12"},"Materiais eletricos"]
[{"$f":"\"13\"","v":"13"},"Medicamentos e outros produtos farmaceuticos para uso humano"]
[{"$f":"\"14\"","v":"14"},"Papeis, plasticos, produtos ceramicos e vidros"]
[{"$f":"\"15\"","v":"15"},"Pneumaticos, camaras de ar e protetores de borracha"]
[{"$f":"\"16\"","v":"16"},"Produtos alimenticios"]
[{"$f":"\"17\"","v":"17"},"Produtos de papelaria"]
[{"$f":"\"18\"","v":"18"},"Produtos de perfumaria e de higiene pessoal e cosmeticos"]
[{"$f":"\"19\"","v":"19"},"Produtos eletronicos, eletroeletronicos e eletrodomesticos"]
[{"$f":"\"20\"","v":"20"},"Racoes para animais domesticos"]
[{"$f":"\"21\"","v":"21"},"Sorvetes e preparados para fabricacao de sorvetes em maquinas"]
[{"$f":"\"22\"","v":"22"},"Tintas e vernizes"]
[{"$f":"\"23\"","v":"23"},"Veiculos automotores"]
[{"$f":"\"24\"","v":"24"},"Veiculos de duas e tres rodas motorizados"]
[{"$f":"\"25\"","v":"25"},"Venda de mercadorias pelo sistema porta a porta"]